bitfinex-derivatives/quotes_SOLF0:USTF0_20250709
["timestamp","ask_amount","ask_price","bid_price","bid_amount"]
[1752072852152,17.17027069,153.21,153.17,0.04163072]
[1752072852354,4.44576301,153.2,153.17,0.04163072]
[1752072852552,6.5268,153.2,153.17,0.04163072]
[1752072852956,13.84074396,153.24,153.17,0.04163072]
[1752072853263,6.5266,153.2,153.17,0.04163072]
[1752072853558,10.97734382,153.19,153.17,6.56933072]
[1752072853757,6.5272,153.19,153.17,6.56933072]
[1752072853948,6.5272,153.19,153.17,0.04163072]
[1752072855654,9.0725347,153.23,153.17,0.04163072]
[1752072855870,4.45487164,153.22,153.2,4.76820926]
[1752072856070,6.5234,153.28,153.2,9.53641852]
[1752072856259,13.84074396,153.32,153.2,4.76820926]
[1752072856464,12.74143331,153.31,153.24,4.76583935]
[1752072856770,26.57980736,153.3,153.21,4.76583935]
[1752072856964,4.76767561,153.28,153.17,202.0842]
[1752072857166,12.74143331,153.27,153.2,4.76767561]
[1752072857366,4.62266447,153.26,153.21,6.5259]
[1752072857567,6.99917561,153.28,153.21,6.5259]
[1752072857767,6.5246,153.25,153.21,6.5259]
[1752072858165,6.5246,153.25,153.23,0.04155074]
[1752072859368,6.5249,153.24,153.23,0.04155074]
[1752072859674,11.1867629,153.24,153.23,0.04155074]
[1752072859874,4.6618629,153.24,153.18,4.76767561]
[1752072860070,4.76767561,153.24,153.18,4.76767561]
[1752072860568,4.66108494,153.23,153.18,4.76767561]
[1752072860774,6.526,153.22,153.18,11.29497561]
[1752072861174,6.526,153.22,153.18,4.76767561]
[1752072861370,6.526,153.22,153.18,11.29497561]
[1752072861571,6.526,153.22,153.18,4.76767561]
[1752072861771,6.526,153.22,153.18,6.5273]
[1752072862267,6.56842642,153.22,153.18,6.5273]
[1752072862468,0.04242642,153.22,153.19,6.5269]
[1752072862671,0.04242642,153.22,153.17,7.04757561]
[1752072864074,0.04242642,153.22,153.18,6.5271]
[1752072864976,6.5262,153.21,153.18,6.5271]
[1752072865178,0.04242642,153.22,153.17,7.04757561]
[1752072865478,0.04242642,153.22,153.19,4.76767561]
[1752072866176,6.56822642,153.22,153.19,4.76767561]
[1752072866371,0.04242642,153.22,153.19,4.76767561]
[1752072866679,6.56822642,153.22,153.19,11.29437561]
[1752072867478,6.5263,153.21,153.18,6.5273]
[1752072867980,0.04242642,153.22,153.17,7.04757561]
[1752072868880,6.5265,153.21,153.17,7.04757561]
[1752072869180,0.04242642,153.22,153.17,7.04757561]
[1752072869379,6.5266,153.2,153.17,13.57517561]
[1752072870286,6.5263,153.21,153.17,13.57517561]
[1752072870583,0.04242642,153.22,153.17,13.57517561]
[1752072870978,6.5266,153.2,153.17,13.57517561]
[1752072873382,6.5263,153.21,153.18,6.5274]
[1752072874683,6.56842642,153.22,153.19,6.527]
[1752072875672,6.5264,153.21,153.19,6.527]
[1752072876780,0.04242642,153.22,153.19,6.527]
[1752072877484,6.5262,153.21,153.19,6.527]
[1752072878984,6.56842642,153.22,153.19,6.527]
[1752072880280,6.5262,153.21,153.19,6.527]
[1752072880789,0.04242642,153.22,153.19,4.76767561]
[1752072881788,6.56842642,153.22,153.19,11.29447561]
[1752072884987,0.04242642,153.22,153.18,11.29497561]
[1752072885687,6.5264,153.21,153.18,11.29497561]
[1752072886590,6.5267,153.2,153.18,4.76767561]
[1752072887392,6.527,153.19,153.16,11.29577561]
[1752072888090,6.5275,153.18,153.16,11.29577561]
[1752072889483,6.5272,153.19,153.16,11.29577561]
[1752072889689,6.56919227,153.19,153.16,11.29577561]
[1752072890482,6.5275,153.18,153.16,11.29577561]
[1752072891392,6.56929227,153.19,153.16,11.29577561]
[1752072892699,0.04199227,153.19,153.15,6.5286]
[1752072893288,4.48890119,153.18,153.12,4.76767561]
[1752072893496,4.48890119,153.18,153.11,4.76767561]
[1752072893497,12.27521805,153.17,153.11,4.76767561]
[1752072893693,4.76767561,153.18,153.11,4.76767561]
[1752072893901,12.27240442,153.17,153.12,6.5298]
[1752072894096,4.76767561,153.18,153.12,6.5298]
[1752072894391,4.4870774,153.17,153.11,11.29797561]
[1752072894596,4.76767561,153.18,153.11,11.29797561]
[1752072894788,12.26876682,153.17,153.11,11.29797561]
[1752072894992,6.5294,153.14,153.11,11.29797561]
[1752072895187,4.76767561,153.16,153.09,8.7095]
[1752072895396,6.5303,153.12,153.09,8.7095]
[1752072896491,6.57215653,153.12,153.09,2.1784]
[1752072897000,0.04185653,153.12,153.1,6.5309]
[1752072900199,0.04185653,153.12,153.11,6.5305]
[1752072900595,563.74,153.19,153.1,4.76767561]
[1752072900899,6.5281,153.17,153.15,4.76767561]
[1752072901303,563.74,153.19,153.15,4.76767561]
[1752072901592,19.5626,153.34,153.09,2.1784]
[1752072901593,9.07044343,153.25,153.17,4.76767561]
[1752072901793,6.526,153.22,153.19,11.29467561]
[1752072901994,570.95897561,153.26,153.19,4.76767561]
[1752072902301,4.40355334,153.25,153.21,4.76767561]
[1752072902500,4.40355334,153.24,153.21,4.76767561]
[1752072902701,563.86,153.26,153.19,0.04150891]
[1752072902702,563.86,153.26,153.23,4.76767561]
[1752072902901,6.5245,153.25,153.23,11.29297561]
[1752072904095,563.86,153.26,153.24,6.5248]
[1752072904301,0.7126,153.28,153.25,4.76767561]
[1752072904509,4.40751974,153.27,153.25,4.76767561]
[1752072904698,0.7126,153.28,153.25,11.29187561]
[1752072904901,4.40510782,153.27,153.25,11.29187561]
[1752072905101,0.7126,153.28,153.25,11.29187561]
[1752072905302,0.7126,153.28,153.26,6.5239]
[1752072905504,0.7126,153.28,153.25,4.76767561]
[1752072906399,0.7126,153.28,153.25,11.29187561]
[1752072906703,0.7126,153.28,153.25,4.76767561]
[1752072907099,0.7126,153.28,153.25,11.29197561]
[1752072907402,568.56767561,153.33,153.22,0.04397436]
[1752072907403,6.95387561,153.36,153.27,4.76767561]
[1752072907593,12.23700692,153.35,153.3,4.76767561]
[1752072907799,6.5214,153.33,153.3,4.76767561]
[1752072907996,4.40319017,153.32,153.3,4.76767561]
[1752072908304,4.40319017,153.31,153.3,4.76767561]
[1752072908598,4.40007983,153.31,153.3,4.76767561]
[1752072908999,6.5218,153.32,153.3,4.76767561]
[1752072909395,6.5212,153.33,153.3,4.76767561]
[1752072909802,196.58,153.35,153.3,4.76767561]
[1752072910001,4.39849922,153.34,153.3,4.76767561]
[1752072910302,4.39849922,153.33,153.3,4.76767561]
[1752072910497,4.76767561,153.34,153.29,0.04289105]
[1752072910698,4.76767561,153.32,153.25,4.76767561]
[1752072910897,4.76767561,153.32,153.23,4.76767561]
[1752072911102,7.81474567,153.31,153.23,4.76767561]
[1752072911304,4.76767561,153.3,153.23,4.76767561]
[1752072911904,6.5239,153.27,153.23,11.29287561]
[1752072912100,4.76767561,153.3,153.23,4.76767561]
[1752072912406,4.81006566,153.28,153.21,9.13417561]
[1752072912604,6.5249,153.25,153.21,15.66007561]
[1752072912806,4.81006566,153.28,153.21,15.66007561]
[1752072913008,4.76767561,153.28,153.21,15.66007561]
[1752072913300,4.76767561,153.28,153.21,2.2167]
[1752072913301,0.0449523,153.26,153.21,2.2167]
[1752072913605,4.81262791,153.26,153.19,4.76767561]
[1752072913798,4.76767561,153.24,153.17,7.10827561]
[1752072914196,6.5261,153.22,153.18,6.5273]
[1752072914400,4.76767561,153.24,153.18,6.5273]
[1752072914608,0.0472308,153.22,153.17,7.10827561]
[1752072914807,6.5264,153.21,153.17,13.63597561]
[1752072915102,0.0472308,153.22,153.17,13.63597561]
[1752072915496,0.0472308,153.22,153.17,2.3406]
[1752072915704,4.81490641,153.22,153.15,4.76767561]
[1752072916109,6.5275,153.18,153.15,4.76767561]
[1752072916804,6.5279,153.17,153.15,4.76767561]
[1752072917005,6.5279,153.17,153.13,13.49137561]
[1752072917905,0.04251657,153.18,153.13,6.96197561]
[1752072918107,0.04251657,153.18,153.15,4.76767561]
[1752072919212,0.04251657,153.18,153.17,6.5279]
[1752072919511,0.04251657,153.18,153.17,11.29557561]
[1752072919914,0.04251657,153.18,153.17,4.76767561]
[1752072920913,0.04251657,153.18,153.17,11.29547561]
[1752072921210,4.76767561,153.26,153.17,4.76767561]
[1752072921415,4.76767561,153.26,153.13,2.1943]
[1752072921416,6.5258,153.22,153.19,4.76767561]
[1752072922114,6.5262,153.21,153.19,4.76767561]
[1752072922512,6.5262,153.21,153.18,6.56958006]
[1752072922710,6.5262,153.21,153.18,11.33725567]
[1752072923110,6.5259,153.22,153.18,11.33725567]
[1752072925712,6.5259,153.22,153.19,6.5269]
[1752072926017,6.5259,153.22,153.18,4.81005567]
[1752072926312,21.10296927,153.26,153.2,4.76767561]
[1752072926613,7.06207561,153.28,153.22,4.76767561]
[1752072926816,141.86272997,153.3,153.24,11.29247561]
[1752072927514,6.5239,153.27,153.25,0.04338614]
[1752072927912,141.86272997,153.3,153.25,0.04338614]
[1752072928117,6.524,153.26,153.25,0.04338614]
[1752072928616,6.5238,153.27,153.25,0.04338614]
[1752072930510,6.524,153.26,153.25,0.04338614]
[1752072930714,4.76767561,153.27,153.2,6.5264]
[1752072930917,6.5251,153.24,153.19,9.29757561]
[1752072931816,6.57205486,153.23,153.19,9.29757561]
[1752072932010,6.57205486,153.23,153.2,6.5264]
[1752072932518,6.57205486,153.23,153.19,9.29757561]
[1752072932519,6.5258,153.22,153.19,9.29757561]
[1752072932819,6.5258,153.22,153.19,15.82437561]
[1752072934719,6.5258,153.22,153.19,9.29757561]
[1752072936120,6.5258,153.22,153.2,6.5265]
[1752072936813,6.57225486,153.23,153.21,6.5262]
[1752072937020,6.57225486,153.23,153.19,9.29757561]
[1752072937315,0.04675486,153.23,153.19,9.29757561]
[1752072937518,6.526,153.22,153.19,15.82437561]
[1752072937915,6.526,153.22,153.19,9.29757561]
[1752072938117,0.04675486,153.23,153.21,4.76767561]
[1752072938313,8.64313379,153.29,153.21,4.76767561]
[1752072938517,137.09505436,153.3,153.24,6.5247]
[1752072938718,4.62468343,153.29,153.23,4.76767561]
[1752072938917,137.09505436,153.3,153.23,4.76767561]
[1752072939122,6.5243,153.26,153.23,11.29267561]
[1752072939325,6.5243,153.26,153.23,4.76767561]
[1752072939624,6.5243,153.26,153.24,6.5247]
[1752072940829,6.5243,153.26,153.23,11.33406579]
[1752072941326,4.76767561,153.28,153.23,0.04129018]
[1752072941624,6.5249,153.24,153.23,0.04129018]
[1752072942423,4.76767561,153.28,153.23,0.04129018]
[1752072942625,4.76767561,153.29,153.23,0.04129018]
[1752072942826,4.60754434,153.28,153.23,0.04129018]
[1752072943026,4.76767561,153.29,153.23,0.04129018]
[1752072943330,6.5243,153.26,153.23,6.56639018]
[1752072943830,6.5243,153.26,153.24,6.5247]
[1752072944232,6.5245,153.25,153.23,0.04129018]
[1752072944534,4.76767561,153.29,153.23,6.56619018]
[1752072944730,6.5243,153.26,153.23,6.56619018]
[1752072945033,137.09505436,153.3,153.25,6.5242]
[1752072945235,8.69526313,153.29,153.24,4.76767561]
[1752072945533,137.09505436,153.3,153.26,6.5238]
[1752072945833,4.63137967,153.29,153.26,6.5238]
[1752072946034,6.523,153.29,153.26,6.5238]
[1752072946234,6.523,153.29,153.27,6.5235]
[1752072946826,6.523,153.29,153.26,0.0481356]
[1752072947030,6.523,153.29,153.26,4.81581121]
[1752072947524,6.5224,153.3,153.26,4.81581121]
[1752072948135,6.5224,153.3,153.28,6.5229]
[1752072950837,6.522,153.31,153.29,6.5228]
[1752072951338,6.5226,153.3,153.27,6.5234]
[1752072952039,4.76767561,153.33,153.27,6.5234]
[1752072952428,4.63887909,153.32,153.27,6.5234]
[1752072952633,6.5226,153.3,153.27,6.5234]
[1752072954632,4.76767561,153.33,153.28,6.5232]
[1752072954833,4.69236844,153.32,153.3,4.76767561]
[1752072955041,6.5213,153.33,153.3,11.28977561]
[1752072955239,202.78517561,153.37,153.3,11.28977561]
[1752072955441,16.62738184,153.36,153.3,11.28977561]
[1752072955638,6.5213,153.33,153.3,11.28977561]
[1752072955841,6.5213,153.33,153.31,0.04696634]
[1752072956139,6.5208,153.34,153.31,6.56876634]
[1752072956340,4.68956882,153.33,153.31,0.04696634]
[1752072956540,200.46767561,153.37,153.31,0.04696634]
[1752072956735,16.61830571,153.36,153.31,0.04696634]
[1752072957047,6.521,153.34,153.31,6.56866634]
[1752072957741,6.521,153.34,153.32,6.5214]
[1752072958139,6.521,153.34,153.31,0.04696634]
[1752072958643,6.5204,153.35,153.32,4.76767561]
[1752072958841,6.5204,153.35,153.32,11.28897561]
[1752072960343,6.5209,153.34,153.32,4.76767561]
[1752072960843,6.5211,153.33,153.32,4.76767561]
[1752072961640,6.5209,153.34,153.32,4.76767561]
[1752072962543,4.76767561,153.37,153.31,0.04696634]
[1752072963143,6.5214,153.33,153.31,0.04696634]
[1752072963744,4.76767561,153.37,153.31,0.04696634]
[1752072964247,6.5215,153.32,153.31,0.04696634]
[1752072966042,6.5212,153.33,153.31,0.04696634]
[1752072967248,6.5209,153.34,153.31,0.04696634]
[1752072967749,6.5211,153.33,153.31,0.04696634]
[1752072967944,4.76767561,153.36,153.31,0.04696634]
[1752072968144,4.76767561,153.36,153.31,6.56876634]
[1752072968342,6.5209,153.34,153.31,6.56876634]
[1752072968549,568.32767561,153.38,153.32,6.5211]
[1752072968748,8.85170769,153.37,153.32,4.76767561]
[1752072968948,11.25733656,153.36,153.32,4.76767561]
[1752072969247,4.76767561,153.37,153.31,4.81464195]
[1752072969443,4.73781371,153.36,153.31,0.04696634]
[1752072969748,9.1860374,153.41,153.31,29.04696634]
[1752072970043,30.19663549,153.62,153.4,9.5201983]
[1752072970239,18.04331774,153.72,153.6,9.5201983]
[1752072970440,4.04531086,153.71,153.61,8.57303443]
[1752072970645,39.41793369,153.83,153.62,8.57303443]
[1752072970847,1e-08,153.82,153.73,7.10173407]
[1752072971044,1e-08,153.82,153.63,15.6747685]
[1752072971045,32.62,153.82,153.74,7.10173407]
[1752072971247,13.04007384,153.77,153.74,7.10173407]
[1752072971548,13.04007384,153.78,153.76,7.10173407]
[1752072971741,13.04007384,153.76,153.74,7.10173407]
[1752072971939,13.04007384,153.76,153.75,8.69388018]
[1752072972144,4.5921,153.83,153.75,8.69388018]
[1752072972344,13.04007384,153.77,153.76,8.69388018]
[1752072972545,26.08007384,153.77,153.76,5.15138018]
[1752072973049,26.08007384,153.77,153.76,12.36206677]
[1752072973247,26.08007384,153.77,153.76,15.78559839]
[1752072973449,26.08007384,153.77,153.76,8.5749118]
[1752072973450,13.04,153.77,153.76,8.5749118]
[1752072973641,13.04,153.77,153.75,0.04420677]
[1752072973642,38.10249064,153.77,153.75,0.04420677]
[1752072973851,26.08007384,153.76,153.75,0.04420677]
[1752072974246,13.04,153.76,153.75,0.04420677]
[1752072974449,38.10249064,153.76,153.75,0.04420677]
[1752072974741,38.10249064,153.76,153.66,9.09429551]
[1752072974947,26.08007384,153.75,153.68,7.10173407]
[1752072975147,26.08007384,153.75,153.66,9.09429551]
[1752072975352,13.04,153.74,153.68,7.10173407]
[1752072975540,13.04,153.74,153.66,9.09429551]
[1752072975744,13.04,153.73,153.66,9.09429551]
[1752072975941,13.04007384,153.73,153.67,7.10173407]
[1752072976143,7.10173407,153.8,153.64,9.09429551]
[1752072976341,4.5921,153.83,153.69,7.10173407]
[1752072976342,13.04,153.82,153.69,7.10173407]
[1752072976646,13.04007384,153.75,153.69,7.10173407]
[1752072976841,13.04007384,153.76,153.71,7.10173407]
[1752072977043,13.04007384,153.76,153.73,7.10173407]
[1752072977242,4.5921,153.83,153.73,7.10173407]
[1752072977451,13.04007384,153.78,153.63,18.54982958]
[1752072977642,13.04007384,153.78,153.74,7.10173407]
[1752072977846,4.5921,153.83,153.74,7.10173407]
[1752072978045,13.04007384,153.81,153.78,7.10173407]
[1752072978249,13.04007384,153.81,153.78,7.09685015]
[1752072978455,13.04,153.8,153.78,7.09685015]
[1752072978752,13.04,153.8,153.76,7.09685015]
[1752072978753,26.08007384,153.8,153.76,7.09685015]
[1752072978950,13.04,153.79,153.76,7.09685015]
[1752072979350,11.0923,153.83,153.76,7.09685015]
[1752072979651,0.0429294,153.79,153.76,7.09685015]
[1752072979849,0.0429294,153.79,153.67,220.32]
[1752072980044,13.04,153.78,153.75,7.09685015]
[1752072980449,6.5003,153.82,153.73,6.5037]
[1752072980651,13.04007384,153.79,153.73,6.5037]
[1752072980849,13.08288086,153.79,153.75,7.09685015]
[1752072981050,13.08288086,153.79,153.63,16.19114566]
[1752072981051,26.08007384,153.78,153.63,16.19114566]
[1752072981245,26.08007384,153.78,153.73,7.09685015]
[1752072981447,13.04,153.77,153.73,7.09685015]
[1752072981752,12.84489074,153.77,153.73,7.09685015]
[1752072981942,7.36504938,153.76,153.75,7.09685015]
[1752072982142,4.5921,153.83,153.76,6.5026]
[1752072982143,0.04194988,153.77,153.76,6.5026]
[1752072982450,562.02,154.0,153.76,7.09685015]
[1752072982654,13.04007384,153.86,153.74,0.0426581]
[1752072982950,13.04007384,153.86,153.73,2.2588]
[1752072982951,2.14,153.91,153.83,7.09685015]
[1752072983150,13.04007384,153.85,153.81,7.09685015]
[1752072983349,13.04007384,153.87,153.81,7.09685015]
[1752072983553,13.04007384,153.87,153.83,0.59902209]
[1752072983750,12.84489074,153.86,153.83,0.59902209]
[1752072984352,2.14,153.91,153.83,0.59902209]
[1752072984545,13.04007384,153.87,153.83,0.59902209]
[1752072984852,25.88496458,153.86,153.83,0.59902209]
[1752072985053,13.04007384,153.85,153.83,0.04240061]
[1752072985451,12.84489074,153.84,153.81,3.89034192]
[1752072985652,12.84489074,153.85,153.81,3.89034192]
[1752072985854,12.84489074,153.85,153.73,4.4683]
[1752072985855,12.84489074,153.84,153.73,4.4683]
[1752072986058,25.88496458,153.84,153.8,7.09685015]
[1752072986261,12.84489074,153.83,153.79,7.09685015]
[1752072986756,12.88686388,153.83,153.79,7.09685015]
[1752072986959,13.04007384,153.81,153.77,7.09685015]
[1752072987348,12.84489074,153.81,153.77,7.09685015]
[1752072987556,12.84489074,153.81,153.73,561.99309601]
[1752072987557,25.88496458,153.8,153.73,553.67601726]
[1752072987857,13.04007384,153.79,153.75,7.09685015]
[1752072988155,25.88496458,153.79,153.75,7.09685015]
[1752072988356,12.88936636,153.79,153.75,7.09685015]
[1752072988756,2.3488,153.94,153.77,7.09685015]
[1752072988959,13.04007384,153.84,153.81,7.09429265]
[1752072989457,12.84489074,153.84,153.81,7.09429265]
[1752072989656,12.84489074,153.83,153.72,8.09429265]
[1752072989859,12.84489074,153.83,153.8,6.501]
[1752072990056,6.4991,153.85,153.8,6.501]
[1752072990255,25.88496458,153.84,153.8,6.501]
[1752072990452,12.84489074,153.83,153.8,0.04659835]
[1752072990647,25.88496458,153.83,153.81,7.09470452]
[1752072992152,25.88496458,153.82,153.8,0.04659835]
[1752072992458,25.88496458,153.81,153.8,0.04659835]
[1752072992858,12.84489074,153.81,153.8,0.04659835]
[1752072993255,2.14,153.91,153.8,7.14130287]
[1752072993562,12.84501532,153.83,153.8,7.14130287]
[1752072993763,12.84501532,153.83,153.8,7.09470452]
[1752072994058,12.84489074,153.83,153.8,7.13826533]
[1752072994460,12.84489074,153.83,153.8,0.04356081]
[1752072995153,12.84501532,153.81,153.8,0.04356081]
[1752072995360,12.84489074,153.82,153.8,0.04356081]
[1752072995560,25.68990606,153.81,153.8,0.04356081]
[1752072996057,37.71232286,153.81,153.8,0.04356081]
[1752072996260,44.21302286,153.81,153.8,0.04356081]
[1752072996860,37.71232286,153.81,153.8,0.04356081]
[1752072997060,37.71232286,153.81,153.77,13.60087539]
[1752072997262,25.68990606,153.8,153.77,7.09857539]
[1752072997768,12.84489074,153.8,153.77,7.09857539]
[1752072998667,25.68990606,153.78,153.74,7.09857539]
[1752072998867,12.84501532,153.77,153.74,7.09857539]
[1752072999073,12.84501532,153.77,153.74,13.60197539]
[1752072999265,12.84489074,153.77,153.74,7.09857539]
[1752072999468,7.09857539,153.87,153.76,7.09857539]
[1752072999768,12.84489074,153.85,153.77,0.74327195]
[1752072999964,12.84501532,153.8,153.77,0.74327195]
[1752073000165,12.84501532,153.8,153.77,7.84184734]
[1752073000369,25.68990606,153.79,153.77,7.84184734]
[1752073000772,12.84489074,153.79,153.77,7.84184734]
[1752073001172,12.84489074,153.79,153.77,14.34404734]
[1752073001974,2.2905,153.83,153.77,7.84184734]
[1752073002269,25.68990606,153.82,153.8,7.09857539]
[1752073002476,25.68990606,153.82,153.77,0.74327195]
[1752073002770,12.84489074,153.81,153.77,0.74327195]
[1752073002970,12.84489074,153.81,153.79,7.09857539]
[1752073003164,2.2905,153.83,153.79,7.09857539]
[1752073003369,25.68990606,153.82,153.79,7.09857539]
[1752073003571,25.68990606,153.82,153.79,13.59987539]
[1752073003772,12.84489074,153.81,153.79,13.59987539]
[1752073004275,8.7905,153.83,153.79,13.59987539]
[1752073004576,32.19020606,153.82,153.79,7.09857539]
[1752073004776,25.68990606,153.82,153.79,7.09857539]
[1752073004975,12.84489074,153.81,153.79,7.09857539]
[1752073005474,2.2905,153.83,153.79,7.09857539]
[1752073005676,32.19040606,153.82,153.79,7.09857539]
[1752073006075,12.84489074,153.81,153.79,7.09857539]
[1752073006475,6.5005,153.82,153.79,7.09857539]
[1752073006677,25.68990606,153.8,153.77,0.04286287]
[1752073006870,12.84501532,153.78,153.77,0.04286287]
[1752073007377,12.84489074,153.78,153.77,0.04286287]
[1752073007573,37.71232286,153.78,153.77,0.04286287]
[1752073007975,37.71232286,153.78,153.75,7.10120121]
[1752073008176,25.68990606,153.77,153.75,7.10120121]
[1752073008572,25.68990606,153.76,153.75,7.10120121]
[1752073008976,12.84489074,153.76,153.75,7.10120121]
[1752073009383,12.84489074,153.76,153.74,7.10120121]
[1752073009573,12.84489074,153.75,153.74,7.10120121]
[1752073009770,25.68990606,153.76,153.74,13.60490121]
[1752073009977,25.68990606,153.76,153.74,7.10120121]
[1752073010278,12.84489074,153.75,153.74,7.10120121]
[1752073010480,12.84501532,153.76,153.74,13.60460121]
[1752073010877,12.84489074,153.75,153.74,13.60460121]
[1752073011078,12.84501532,153.76,153.74,13.60460121]
[1752073011479,12.84489074,153.76,153.75,6.503]
[1752073011779,6.5466787,153.79,153.75,6.503]
[1752073011972,0.0449787,153.79,153.78,7.10120121]
[1752073012376,2.2905,153.83,153.78,7.10120121]
[1752073012578,12.84489074,153.82,153.73,3.6649]
[1752073012773,12.84489074,153.82,153.81,7.10120121]
[1752073012974,475.04120121,153.92,153.81,13.60170121]
[1752073012975,8.8192,153.86,153.81,13.60170121]
[1752073013182,12.84501532,153.83,153.81,13.60170121]
[1752073013381,12.84489074,153.82,153.81,13.60170121]
[1752073013686,12.84489074,153.82,153.81,21.79384376]
[1752073013888,2.3203,153.86,153.81,15.29334376]
[1752073014081,30.18945807,153.85,153.84,7.10120121]
[1752073014286,30.18945807,153.85,153.84,15.33268901]
[1752073014485,17.34444275,153.85,153.84,15.33268901]
[1752073015685,17.34444275,153.85,153.84,27.2781557]
[1752073016188,4.49955201,153.85,153.84,15.33268901]
[1752073016587,2.2468,153.9,153.84,15.33268901]
[1752073016790,12.84501532,153.86,153.84,7.10120121]
[1752073017388,12.84489074,153.85,153.84,7.10120121]
[1752073017588,12.84501532,153.86,153.84,7.10120121]
[1752073017989,12.84489074,153.85,153.84,7.10120121]
[1752073018185,12.84501532,153.86,153.84,13.60060121]
[1752073018784,12.84489074,153.85,153.84,7.10120121]
[1752073019091,12.84501532,153.86,153.84,7.10120121]
[1752073019282,12.84489074,153.85,153.84,13.60060121]
[1752073019681,2.2468,153.9,153.84,13.60060121]
[1752073019880,12.84501532,153.86,153.85,8.47296098]
[1752073020392,12.84489074,153.86,153.85,26.39116101]
[1752073020795,16.93912454,153.86,153.85,8.47296098]
[1752073020993,28.96154134,153.86,153.85,8.47296098]
[1752073021193,22.46294134,153.86,153.85,8.47296098]
[1752073021889,22.46294134,153.86,153.84,7.10120121]
[1752073022091,10.44052454,153.85,153.83,0.04234239]
[1752073022294,10.44052454,153.84,153.83,0.04234239]
[1752073022491,10.44052454,153.85,153.83,0.04234239]
[1752073022793,22.46294134,153.86,153.83,7.13534192]
[1752073022994,12.0224168,153.86,153.84,9.0861883]
[1752073023191,12.0224168,153.86,153.83,9.12853069]
[1752073023494,10.44052454,153.84,153.83,9.12853069]
[1752073023800,10.44052454,153.84,153.83,20.66031541]
[1752073023995,31.27352412,153.84,153.75,467.94]
[1752073024200,22.55085069,153.8,153.79,7.09299953]
[1752073024399,20.92090893,153.8,153.79,7.09299953]
[1752073024694,20.92103647,153.8,153.79,7.09299953]
[1752073024888,8.81058278,153.8,153.79,6.5015]
[1752073026088,20.91905786,153.8,153.79,6.5015]
[1752073026696,20.91905786,153.8,153.79,13.59449953]
[1752073026893,8.81058278,153.8,153.79,7.09299953]
[1752073027196,20.92112625,153.8,153.79,7.09299953]
[1752073027597,20.92112625,153.8,153.79,13.59449953]
[1752073027996,8.81058278,153.8,153.79,13.59449953]
[1752073028391,12.11054347,153.84,153.79,7.09299953]
[1752073028700,14.8427528,153.83,153.82,7.09299953]
[1752073029000,14.8427528,153.83,153.82,13.59329953]
[1752073029200,26.8651696,153.83,153.82,13.59329953]
[1752073030204,22.46294134,153.83,153.82,13.59329953]
[1752073030797,22.46294134,153.83,153.82,6.5003]
[1752073030998,22.46294134,153.83,153.81,6.54254447]
[1752073031199,10.44052454,153.82,153.81,0.04204447]
[1752073031699,22.46294134,153.82,153.81,0.04204447]
[1752073032302,22.46294134,153.82,153.73,3.6649]
[1752073032493,10.44052454,153.77,153.74,7.10065728]
[1752073032692,10.44052454,153.77,153.71,137.38201352]
[1752073032693,6.5009,153.81,153.77,6.502]
[1752073032998,10.44052454,153.77,153.75,7.10065728]
[1752073033199,10.44052454,153.77,153.76,6.5025]
[1752073033803,9.08572981,153.85,153.71,347.66201352]
[1752073034101,10.4817388,153.78,153.76,7.10000284]
[1752073034296,10.4817388,153.78,153.77,6.5024]
[1752073034601,6.501,153.81,153.76,7.10000284]
[1752073034798,10.44052454,153.78,153.77,6.5024]
[1752073036899,22.46294134,153.78,153.77,6.5024]
[1752073037204,22.46294134,153.78,153.76,6.5026]
[1752073037398,10.44052454,153.76,153.73,7.10000284]
[1752073037800,0.04097393,153.79,153.73,7.10000284]
[1752073037996,10.44052454,153.76,153.73,7.10000284]
[1752073038901,10.44052454,153.76,153.75,6.5032]
[1752073039605,10.44052454,153.76,153.72,7.10000284]
[1752073040204,10.44052454,153.76,153.75,6.5032]
[1752073040597,22.46294134,153.76,153.69,3.1557]
[1752073040906,10.44052454,153.73,153.7,7.10000284]
[1752073041406,22.46294134,153.73,153.72,6.5045]
[1752073042403,10.44052454,153.73,153.72,6.5045]
[1752073047411,22.46294134,153.73,153.71,6.5048]
[1752073047611,10.44052454,153.72,153.7,7.10000284]
[1752073047904,10.44052454,153.72,153.71,6.5049]
[1752073048110,0.04231092,153.74,153.7,7.10000284]
[1752073048306,10.44052454,153.72,153.7,7.10000284]
[1752073048506,0.04231092,153.74,153.73,6.5041]
[1752073048706,10.48283546,153.74,153.73,6.5041]
[1752073049099,0.04231092,153.74,153.73,13.60410284]
[1752073050111,22.50525226,153.74,153.73,6.5041]
[1752073051713,29.00915226,153.74,153.68,421.02]